{"text_format":"1","workbook":"xlsx","n_sheets":1,"sheets":["08"],"not_rendered":{"charts":0,"images":1,"macros":1,"external_links":1,"defined_names":0,"comments":0,"pivot_tables":0},"unopened":[],"bounds":{"document_bytes":16777216,"sheet_cells":100000,"rows_first":2000,"rows_last":500,"rows_between":2000,"halvings":0,"cell_chars":16384,"cell_head_chars":4096},"cells_cut":0,"cells_raw":0,"read":"whole","date_system":"1900"}

{"sheet":"08","index":0,"n_rows":27,"n_cols":10,"rows_kept":27,"cut":false,"hidden":false,"merged":[[22,0,22,9],[0,0,0,9],[1,0,1,9],[4,0,4,9],[3,0,3,9],[2,0,2,9],[19,0,19,2],[19,3,19,9],[20,0,20,9],[21,0,21,9]]}
["    BHARAT HEAVY ELECTRICAL LIMITED , JHANSI              "]
["FACTORY CIVIL DEPARTMENT"]
["Price bid "]
[{"$f":"'[1]Measurment '!A4:I4","v":"Name of Work : Renovation with Tiling work  inside factory area in BHEL Jhansi."}]
["Tende Enquiry No- FCX/TW/24/08"]
["Sl.no.","DSR 2016","Descripition of work","% Allocation (Item-wise)","Unit","Qty.","Rate","Amount (Rs.)","Rate per Unit (in Rs.)","Amount (in Rs.)"]
[1,"1.1.1","By Mechanical Transport including loading, unloading and stacking Lime, moorum, building rubish  upto1 km .",{"$f":"H7*0.809/955901.11","v":1.3317720700209253E-4},"Cum",{"$f":"'[1]Measurment '!H11","v":2},78.680000000000007,{"$f":"F7*G7","v":157.36000000000001},{"$f":"ROUNDUP(J7/F7,4)","v":0},{"$f":"$J$19*D7","v":0}]
[2,"4.1.3","P and L in position Cement concrete -1:2:4 (1 Cement: 4 coarse sand: 8 graded stone aggregate 20mm nominal size) excluding the cost of entering and shuttering all work up to plinth level.",{"$f":"H8*0.809/955901.11","v":2.7383420655301889E-3},"Cum",{"$f":"'[1]Measurment '!H16","v":1},3235.58,{"$f":"F8*G8","v":3235.58},{"$f":"ROUNDUP(J8/F8,4)","v":0},{"$f":"$J$19*D8","v":0}]
[3,"6.4.2","Brick  work  with  FPS  bricks  of    (II nd class kanpur brick ) in Super  structure 1:6 (1 cement : 6 fine sand ) upto floor five level ",1.2056074859040599E-2,"Cum",{"$f":"'[1]Measurment '!H22","v":3},4748.42,14245.26,0,0]
[4,"6.13.2","Providing Half Brick masonry in super structure upto floor five level . 1:4 ( 1 cement :4 coarse sand )",4.7843420748826205E-3,"Sqm",{"$f":"'[1]Measurment '!H29","v":10},565.30999999999995,5653.0999999999995,0,0]
[5,11.36,"Providing and fixing Ist quality ceramic glazed wall tiles conforming to IS: 15622 (thickness to be specified by the manufacturer), of approved make, in all colours, shades except burgundy, bottle green, black of any size as approved by Engineer-in-Charge, in skirting, risers of steps and dados, over 12 mm thick bed of cement mortar 1:3 (1 cement : 3 coarse sand) and jointing with grey cement slurry @ 3.3kg per sqm, including pointing in white cement mixed with pigment of matching shade complete",5.4863745162928003E-2,"Sqm",{"$f":"'[1]Measurment '!H35","v":102},635.54999999999995,64826.1,0,0]
[6,11.38,"Providing and laying Ceramic glazed floor tiles of size 300x300 mm (thickness to be specified by the manufacturer), of 1st quality conforming to IS : 15622, of approved make, in all colours, shades, except White, Ivory, Grey, Fume Red Brown, laid on 20 mm thick bed of cement mortar 1:4 (1 Cement : 4 Coarse sand), jointing with grey cement slurry @ 3.3kg/sqm including pointing the joints with white cement and matching pigments etc., complete",5.0006653261444593E-2,"Sqm",{"$f":"'[1]Measurment '!H40","v":96},615.49,59087.040000000001,0,0]
[7,"11.49.2","Providing and laying Vitrified tiles in floor with different sizes (thickness to be specified by the manufacturer), with water absorption less than 0.08% and conforming to IS:15622 , of approved brand & manufacturer, in all colours and shade, laid with cement based high polymer modified quick set tile adhesive (water based) conforming to IS : 15477, in average 6 mm thickness, including grouting of joints (Payment for grouting of joints to be made separately). Size of Tile 600x600 mm",0.85787103320760882,"Sqm",{"$f":"'[1]Measurment '!H48","v":971},1043.92,1013646.3200000001,0,0]
[8,"13.1.2"," Plaster -12 mm thick in 1:6 ( 1 cement : 6 fine sand ) ",1.2614427239236077E-3,"sqm",{"$f":"'[1]Measurment '!H54","v":11},135.5,1490.5,0,0]
[9,"13.2.2"," Plaster -15 mm thick in 1:6 ( 1 cement : 6 fine sand ) ",1.4477266272867912E-3,"sqm",{"$f":"'[1]Measurment '!H61","v":11},155.51,1710.61,0,0]
[10,"15.2.1","Demolishing cement concrete manually/ by mechanical means including disposal of material within 50 metres lead as per direction of Engineer - in - charge.Nominal concrete 1: 3:6 or leaner mix (i/c equivalent design\nmix)",1.6876504097793131E-3,"Cum",{"$f":"'[1]Measurment '!H67","v":2},997.05,1994.1,0,0]
[11,15.56,"Dismantling old plaster or skirting raking out joints and cleaning the surface for plaster including disposal of rubbish to the dumping ground within 50 metres lead",4.5498262890394589E-4,"sqm",{"$f":"'[1]Measurment '!H75","v":24},22.4,537.59999999999991,0,0]
[12,"DSR 2016","Any or all items not covered above but covered in DSR 2016 ",1.2694827815400277E-2,"Basic Value",1,15000,15000,0,0]
[null,null,"Sub Total  A1",{"$f":"SUM(D7:D18)","v":0.99999999804373096},null,null,null,null,null,0]
["In words ",null,null,{"$f":"rup(J19)","v":0}]
["Note -GST extra as applicable"]
["1. Bidder has to quote in above unlocked cell (J-19) only. Item rate shall be calculated automatically. Calculated item rates upto four  decimal points may be adjusted w.r.t. gross total amount and it shall be the itemwise final rate for  execution of contract and all other purposes."]
["2. Quoted gross total amount should be considered only if quoted in this excel sheet and print out of this should only be considered for evaluation.  If Price is quoted in any other format other than the Excel Sheet enclosed to the NIT , the offer of the bidder  will be rejected."]
[]
[]
[]
[null,null,null,null,null,null,null,null,"(Signature and Seal of  Contractor  )"]